[Event "African Individual Chess-ch Open 2024"]
[Site "Accra"]
[Date "2024.03.13"]
[Round "1.1"]
[White "Adewole, Adeyinka Samuel"]
[Black "Amin, Bassem"]
[Result "0-1"]
[ECO "C30"]
[WhiteElo "1935"]
[BlackElo "2670"]
[Annotator "TA"]
[PlyCount "106"]
[EventDate "2024.03.13"]
[EventCountry "GHA"]
[SourceTitle "playchess.com"]
[Source "ChessBase"]
[SourceQuality "1"]
[TimeControl "5400+30"]

{[%evp 9,106,-25,-16,-4,34,0,12,19,27,8,41,38,45,35,39,30,59,59,60,48,57,38,45,43,48,-69,-62,-73,-88,-83,8,8,14,6,91,62,47,0,0,0,16,20,132,55,74,69,79,-77,-64,-58,-62,-79,-92,-125,-81,-91,-103,-98,-67,-94,-97,-116,-108,-95,-127,-174,-99,-435,-440,-528,-522,-645,-592,-531,-574,-565,-548,-700,-699,-1256,-1160,-1160,-1162,-1241,-762,-772,-534,-878,-533,-526,-526,-29984,-29985,-29987,-29988,-29988,-29989,-29989,-29990]} 1. f4 {[%emt 0:00:30]} e5 {[%emt 0:02:01]} 2. fxe5 {[%emt 0:01:50]} d6 {[%emt 0:00:18]} 3. Nf3 {[%emt 0:03:57]} dxe5 {[%emt 0:00:45]} 4. e4 {[%emt 0:02:48]} Nf6 {[%emt 0:02:08]} 5. Bc4 {[%emt 0:01:17]} Bc5 {[%emt 0:00:17]} 6. Qe2 {[%emt 0:04:40][%cal Oc4f7]} Nc6 {[%emt 0:03:20]} 7. d3 {[%emt 0:02:01]} (7. Bxf7+ {feels hotter.} Kxf7 8. Qc4+ Ke8 9. Qxc5 Nxe4 10. Qe3) 7... Nd4 {[%emt 0:02:42]} 8. Nxd4 {[%emt 0:00:27] The position is equal.} Bxd4 {[%emt 0:00:08]} 9. h3 {[%emt 0:02:19] Inhibits Bg4.} Qe7 {[%emt 0:06:22]} 10. c3 {[%emt 0:01:34]} Bb6 {[%emt 0:00:14]} 11. Bg5 {[%emt 0:00:58]} h6 {[%emt 0:02:59]} 12. Bh4 {[%emt 0:03:21]} Be6 {[%emt 0:00:15]} 13. Nd2 {[%emt 0:00:41]} O-O-O {[%emt 0:03:15]} 14. a4 {[%emt 0:00:38]} a6 {[%emt 0:01:05]} 15. Rf1 {[%emt 0:00:25]} g5 {[%emt 0:00:59]} 16. Bf2 {[%emt 0:00:21]} Nd7 {[%emt 0:01:55]} 17. d4 {[%emt 0:12:41]} (17. Bxb6 $14 Nxb6 18. Bxe6+ fxe6 19. a5) 17... exd4 $15 {[%emt 0:00:43]} 18. cxd4 {[%emt 0:04:08] [#]} Bxc4 $1 {[%emt 0:00:25]} 19. Qxc4 {[%emt 0:01:02]} Ba5 {[%emt 0:02:03]} (19... Nf6 $17 20. e5 Nd5) 20. O-O-O $1 $11 {[%emt 0:01:48]} Nb6 {[%emt 0:01:24]} (20... Bxd2+ 21. Rxd2 Rhe8 (21... Qxe4 22. Bg3 $16) 22. Bg3) 21. Qc2 {[%emt 0:01:21]} Qb4 {[%emt 0:02:06]} (21... Rhe8 $11) 22. Nb3 {[%emt 0:09:05] Hoping for Be1.} Qxa4 {[%emt 0:03:41][%cal Of7f5]} 23. Bg3 {[%emt 0:01:10]} (23. d5 $14 {deserves consideration.}) 23... Rd7 {[%emt 0:00:07]} 24. Rf5 {[%emt 0:00:13]} Bb4 {[%emt 0:01:45]} 25. Kb1 {[%emt 0:02:16]} Re8 {[%emt 0:13:49] [#]} (25... Bd6 $11 {keeps the balance.} 26. Bxd6 Rxd6) 26. Rc1 {[%emt 0:03:41]} (26. d5 $1 $16) 26... Qc6 {[%emt 0:08:50]} 27. Qxc6 {[%emt 0:02:30]} bxc6 {[%emt 0:00:05]} 28. Rf6 $2 {[%emt 0:00:08]} (28. Rxc6 $16 {[%cal Og3c7] keeps the pressure on. Threatens to win with Bxc7!} Rxe4 29. Bxc7 Re1+ 30. Ka2 Rxc7 31. Rxb6) 28... Rxe4 $17 {[%emt 0:00:23] And now ...Nd5 would win.} 29. Rfxc6 {[%emt 0:00:32]} Nd5 {[%emt 0:00:28]} 30. Be5 {[%emt 0:02:26]} Re3 {[%emt 0:01:02]} 31. Na1 {[%emt 0:04:48]} Be7 {[%emt 0:08:23]} 32. Rxh6 {[%emt 0:03:11]} f6 {[%emt 0:01:25]} 33. Bh2 {[%emt 0:00:31]} Rd3 {[%emt 0:04:27]} 34. Nc2 {[%emt 0:05:40]} Rd2 $36 {[%emt 0:00:18][%mdl 2048] Black is really pushing.} 35. Rg1 {[%emt 0:00:06]} Bd6 {[%emt 0:01:58] Black is much more active.} 36. Bxd6 {[%emt 0:00:50]} Rxd6 {[%emt 0:00:05]} 37. g4 {[%emt 0:02:26]} (37. h4 $17) 37... Re6 {[%emt 0:00:18]} ({Black should play} 37... Rb6 $19 {...Nf4 is the strong threat.} 38. Rg3 Rd1+ 39. Ka2 Rc1 40. Rh8+ (40. Ne3 $2 Nb4+ 41. Ka3 Nd3 $19) 40... Kb7) 38. h4 $2 {[%emt 0:02:07][%mdl 8192] This move loses the game for White.} (38. Rh8+ $17 {is more resistant.} Kb7 39. Rg3) 38... Ree2 $19 {[%emt 0:00:33]} 39. Rh8+ {[%emt 0:04:33]} Kb7 {[%emt 0:00:23]} 40. Rg3 {[%emt 0:02:31]} Rxc2 {[%emt 0:00:53]} 41. Rb3+ {[%emt 0:00:10]} Kc6 {[%emt 0:02:42] White must now prevent ...a5.} 42. hxg5 {[%emt 0:00:11]} fxg5 {[%emt 0:00:26]} 43. Rg8 {[%emt 0:03:26]} Rcd2 {[%emt 0:00:49]} 44. Rxg5 {[%emt 0:01:09]} Rd1+ {[%emt 0:00:34]} 45. Ka2 {[%emt 0:00:54]} Rxd4 {[%emt 0:00:16] aiming for ...Nb4+.} 46. Rg6+ {[%emt 0:01:54]} Kd7 {[%emt 0:00:18] Strongly threatening ...Nb4+.} 47. Rg7+ {[%emt 0:01:53]} Ke6 {[%emt 0:00:09] ...Nb4+ would now be deadly.} 48. Rf3 {[%emt 0:01:08]} Ra4+ {[%emt 0:01:01]} 49. Ra3 {[%emt 0:00:30]} Rb4 {[%emt 0:02:34]} 50. Rxa6+ {[%emt 0:00:18]} Ke5 {[%emt 0:00:21] Black mates.} 51. Rg5+ {[%emt 0:03:54]} Kd4 {[%emt 0:00:08]} 52. Ka3 {[%emt 0:02:52]} Rexb2 {[%emt 0:00:21]} 53. Rxd5+ {[%emt 0:00:25]} Kxd5 {[%emt 0:00:03] Weighted Error Value: White=0.59/Black=0.33.  Loses game:     	White=1     	---        Mistake:       	White=5     	Black=4      Inaccurate:     	White=6     	Black=5      OK:         	White=13    	Black=13     Best:        	White=2     	Black=4      Strong:       	White=1     	Black=1} 0-1

[Event "African Individual Chess-ch Open 2024"]
[Site "Accra"]
[Date "2024.03.13"]
[Round "1.2"]
[White "Bellahcene, Bilel"]
[Black "David Leroy Debblay"]
[Result "1-0"]
[ECO "C42"]
[WhiteElo "2522"]
[BlackElo "1913"]
[Annotator "TA"]
[PlyCount "63"]
[EventDate "2024.03.13"]
[EventCountry "GHA"]
[SourceTitle "playchess.com"]
[Source "ChessBase"]
[SourceQuality "1"]
[TimeControl "5400+30"]

{[%evp 15,63,20,31,33,40,11,36,28,40,36,34,34,65,57,93,80,83,88,101,85,124,90,89,102,84,96,102,60,71,-66,19,22,38,0,0,0,0,0,8,8,43,35,159,141,386,266,256,247,945,942]} 1. e4 {[%emt 0:00:05]} e5 {[%emt 0:00:48]} 2. Nf3 {[%emt 0:00:04]} Nf6 {[%emt 0:01:57]} 3. Nxe5 {[%emt 0:00:20]} d6 {[%emt 0:00:16]} 4. Nf3 {[%emt 0:00:10]} Nxe4 {[%emt 0:00:17]} 5. Nc3 {[%emt 0:00:03]} Nxc3 {[%emt 0:05:27]} 6. dxc3 {[%emt 0:00:08]} Be7 {[%emt 0:00:12]} 7. Be3 {[%emt 0:00:04]} Nc6 {[%emt 0:01:54]} 8. Qd2 {[%emt 0:00:21]} Be6 {[%emt 0:05:26]} 9. O-O-O {[%emt 0:00:50]} O-O {[%emt 0:02:45][%cal Oa7a5]} 10. h3 {[%emt 0:02:02]} Ne5 {[%emt 0:07:04]} 11. Nd4 {[%emt 0:04:32] White is slightly better.} Bc4 {[%emt 0:05:48]} 12. b3 {[%emt 0:01:07]} Bxf1 {[%emt 0:01:50]} 13. Rhxf1 {[%emt 0:00:04]} Bf6 {[%emt 0:02:11]} 14. g4 {[%emt 0:00:13]} Nd7 {[%emt 0:04:20]} 15. g5 {[%emt 0:01:40]} Bxd4 {[%emt 0:07:26]} 16. Bxd4 {[%emt 0:00:09]} Re8 {[%emt 0:00:14]} 17. f4 {[%emt 0:01:48] Inhibits Ne5.} Nc5 {[%emt 0:06:17]} 18. c4 {[%emt 0:03:11]} Ne4 {[%emt 0:00:48]} 19. Qd3 {[%emt 0:00:06] White is more active.} Qd7 {[%emt 0:01:55]} 20. Bb2 {[%emt 0:03:54]} Qf5 {[%emt 0:03:18]} 21. Qd4 {[%emt 0:00:45][%csl Gb2][%cal Rd4g7] [#]} f6 {[%emt 0:00:26] Hoping for ...Ng3.} 22. gxf6 {[%emt 0:00:08]} (22. Kb1 $16) 22... Nxf6 {[%emt 0:00:14]} (22... Ng3 $1 $15 23. f7+ Qxf7 (23... Kxf7 24. Qxg7+ Ke6 25. Rde1+ Ne4 26. Rxe4+ Qxe4 27. f5+)) 23. Rg1 $40 {[%emt 0:05:29][%mdl 128] White is up to no good.} Re2 $1 {[%emt 0:05:44]} 24. Qd3 {[%emt 0:00:55]} (24. Qxf6 $2 Qxc2#) 24... Qxd3 {[%emt 0:00:28]} (24... Qxf4+ 25. Kb1 Rae8 26. b4 $17 (26. Rdf1 Rf2 $11)) (24... Qxf4+ {with more complications.} 25. Kb1 Rae8 26. Bd4 c5) 25. Rxd3 {[%emt 0:00:05]} Kf7 {[%emt 0:00:31]} 26. c5 {[%emt 0:06:40]} dxc5 {[%emt 0:02:45]} 27. Bxf6 {[%emt 0:02:38]} Kxf6 $11 {[%emt 0:04:31] KRR-KRR} 28. Rd7 $1 {[%emt 0:00:32][%csl LRc7,LRg7]} Rae8 {[%emt 0:02:12]} ({Black should try} 28... Rg8 $14) 29. Rgxg7 $16 {[%emt 0:03:37]} ({And not} 29. Rxc7 R8e7 30. Rxc5 R2e4 $15) 29... R8e7 $2 {[%emt 0:01:59] [#]} (29... Re1+ $16 {is a better defense.} 30. Kb2 R1e7 31. Rxh7 Rxh7 32. Rxh7 Rc8 33. Rh6+ Ke7) 30. Rxh7 {[%emt 0:05:19]} Rxh7 {[%emt 0:12:19]} 31. Rxh7 {[%emt 0:00:05]} Re6 $2 {[%emt 0:01:31]} (31... c4 32. Rxc7 (32. bxc4 c6 $18) 32... b5 33. bxc4 a6 34. Rc6+ Kf7 35. Rxa6 bxc4) 32. Rh6+ {[%emt 0:00:49] Weighted Error Value: White=0.30/Black=0.35.  Loses game:     	---       	Black=1      Mistake:       	White=1     	Black=3      Inaccurate:     	White=4     	Black=4      OK:         	White=5     	Black=6      Best:        	White=4     	Black=1      Strong:       	---       	Black=1} (32. Rxc7 c4 33. Rxc4 (33. bxc4 Re3 $18) 33... Re7 $18) 1-0

[Event "African Individual Chess-ch Open 2024"]
[Site "Accra"]
[Date "2024.03.13"]
[Round "1.4"]
[White "Rakotomaharo, Fy Antenaina"]
[Black "Fomevor, Cephas Clinton"]
[Result "1-0"]
[ECO "A11"]
[WhiteElo "2454"]
[BlackElo "1887"]
[Annotator "TA"]
[PlyCount "65"]
[EventDate "2024.03.13"]
[EventCountry "GHA"]
[SourceTitle "playchess.com"]
[Source "ChessBase"]
[SourceQuality "1"]
[TimeControl "5400+30"]

{[%evp 9,65,7,23,19,28,10,14,4,0,0,27,26,27,22,27,23,29,24,31,32,25,8,10,0,20,9,14,-22,-19,-100,-62,-64,-35,-52,-75,-73,25,24,32,28,231,236,357,402,367,378,462,472,468,475,467,462,470,472,475,477,467,469]} 1. Nf3 {[%emt 0:00:21]} d5 {[%emt 0:00:19]} 2. e3 {[%emt 0:00:12]} Nf6 {[%emt 0:00:23]} 3. c4 {[%emt 0:00:05]} c6 {[%emt 0:00:09]} 4. Nc3 {[%emt 0:00:08]} a6 {[%emt 0:01:40]} 5. b3 {[%emt 0:00:49]} Bg4 {[%emt 0:00:21]} 6. h3 {[%emt 0:00:34]} Bxf3 {[%emt 0:03:37]} 7. Qxf3 {[%emt 0:00:03]} e6 {[%emt 0:00:15]} 8. Bb2 {[%emt 0:00:42] Die Stellung ist ausgeglichen.} Nbd7 {[%emt 0:00:38]} 9. Qd1 {[%emt 0:01:50]} Be7 {[%emt 0:01:59]} 10. d4 {[%emt 0:00:43]} O-O {[%emt 0:02:33]} 11. Be2 {[%emt 0:00:46]} Re8 {[%emt 0:01:53]} 12. O-O {[%emt 0:00:14]} Rc8 {[%emt 0:07:31]} 13. Rc1 {[%emt 0:02:30]} Bb4 {[%emt 0:08:47]} 14. Qc2 {[%emt 0:03:38]} Qe7 {[%emt 0:07:30]} 15. Nb1 {[%emt 0:00:53]} Ne4 {[%emt 0:03:35]} 16. Bd3 {[%emt 0:01:33]} Ndf6 {[%emt 0:05:46]} 17. Rfd1 {[%emt 0:03:04]} g6 {[%emt 0:07:50]} 18. f3 {[%emt 0:10:16][%cal Bf2f3,Bf3e4,Be4e5][%mdl 32]} Ng3 {[%emt 0:01:35]} 19. e4 {[%emt 0:01:09]} (19. Nd2 $11) 19... dxe4 {[%emt 0:09:02]} 20. fxe4 {[%emt 0:00:09]} Nfh5 {[%emt 0:03:29] Ein dynamisches Springerpaar.} (20... e5 $5 21. c5 exd4 $11) 21. Qf2 {[%emt 0:05:01] Verhindert e5.} Qg5 {[%emt 0:07:41]} 22. a3 {[%emt 0:06:59]} Bd6 {[%emt 0:03:03]} ({Vorzuziehen ist} 22... Be7 $17 {[%cal Oe6e5]} 23. e5 Qh6) 23. e5 $36 {[%emt 0:00:19][%mdl 2048] Weiss hat Initiative.} Bb8 {[%emt 0:00:57]} 24. Nd2 {[%emt 0:00:41][%cal Bb1d2,Bd2f3,Bf3g5,Bg5e4][%mdl 32]} Nf4 $2 {[%emt 0:02:47] Danach kann Schwarz die Partie nicht mehr halten.} (24... f5 $11 {und Schwarz ist OK.}) 25. Nf3 $18 {[%emt 0:02:13]} Nxd3 {[%emt 0:00:47]} (25... Nge2+ $142 26. Bxe2 Nxh3+ 27. Kf1 Qxc1) 26. Rxd3 {[%emt 0:04:55]} Qf4 {[%emt 0:06:12]} 27. Re1 {[%emt 0:00:43]} Ne4 {[%emt 0:03:05] [#]} 28. Rxe4 {[%emt 0:01:10][%mdl 512] Weiß steht klar auf Gewinn.} Qxe4 {[%emt 0:00:28]} 29. Ng5 $1 {[%emt 0:00:06][%csl LRe4,LRf7]} Qf5 {[%emt 0:01:09] [#]} ({Minderwertig wäre} 29... Qxd3 30. Qxf7+ Kh8 31. Qxh7#) 30. Qh4 {[%emt 0:00:10]} h5 {[%emt 0:00:40]} 31. Ne4 {[%emt 0:00:06] Droht Rf3 und aus.} Bc7 {[%emt 0:08:34]} 32. Rf3 {[%emt 0:00:12]} Bd8 {[%emt 0:00:18]} 33. Qe1 {[%emt 0:00:06] Gewichteter Fehlerwert: Weiß=0.09 (makellos) /Schwarz=0.30.  Verlustzug:     	---       	Schwarz=1     Fehler:       	Weiß=1     	Schwarz=2     Ungenau:       	Weiß=1     	Schwarz=3     OK:         	Weiß=9     	Schwarz=11    Bester:       	Weiß=6     	Schwarz=3     Brilliant:      	Weiß=1     	---} 1-0

[Event "African Individual Chess-ch Open 2024"]
[Site "Accra"]
[Date "2024.03.13"]
[Round "1.5"]
[White "Murara, Maxence"]
[Black "Silva, David"]
[Result "0-1"]
[ECO "E90"]
[WhiteElo "1880"]
[BlackElo "2358"]
[Annotator "TA"]
[PlyCount "107"]
[EventDate "2024.03.13"]
[EventCountry "GHA"]
[SourceTitle "playchess.com"]
[Source "ChessBase"]
[SourceQuality "1"]
[TimeControl "5400+30"]

{[%evp 14,107,0,0,0,-18,-14,-18,0,0,6,5,0,-31,-31,-38,-30,-114,-115,-112,-112,-112,-112,-105,-105,-105,-105,-105,-105,-105,-105,-105,-105,-135,-138,-124,-110,-162,-133,-262,-262,-262,-254,-254,-214,-320,-298,-348,-364,-376,-363,-410,-410,-435,-416,-427,-427,-422,-414,-806,-805,-792,-780,-974,-895,-994,-982,-2085,-1817,-2023,-1852,-6850,-9852,-29954,-5639,-5239,-2832,-2148,-1407,-29968,-29969,-29964,-29938,-10950,-6644,-6125,-6510,-29977,-29978,-29973,-29973,-29983,-29984,-29988,-29989,-29989]} 1. d4 {[%emt 0:00:11]} Nf6 {[%emt 0:00:23]} 2. c4 {[%emt 0:00:17]} g6 {[%emt 0:00:06]} 3. Nc3 {[%emt 0:00:09]} Bg7 {[%emt 0:00:23]} 4. Nf3 {[%emt 0:00:34]} O-O {[%emt 0:00:08]} 5. e4 {[%emt 0:01:42]} d6 {[%emt 0:00:19]} 6. Bd3 {[%emt 0:03:04]} Bg4 {[%emt 0:00:05]} 7. h3 {[%emt 0:00:46]} Bxf3 {[%emt 0:00:16]} 8. Qxf3 {[%emt 0:00:37]} Nc6 {[%emt 0:00:02]} 9. Be3 {[%emt 0:01:56]} Nd7 {[%emt 0:03:32]} 10. d5 $1 {[%emt 0:05:58]} Nd4 {[%emt 0:01:27] The position is equal.} 11. Qd1 {[%emt 0:04:14]} c5 {[%emt 0:01:08]} 12. O-O {[%emt 0:15:07]} e5 {[%emt 0:03:05]} 13. f4 {[%emt 0:07:14]} exf4 {[%emt 0:04:43]} 14. Bxf4 {[%emt 0:01:15]} Ne5 {[%emt 0:00:30]} 15. Bxe5 {[%emt 0:04:16] White is now going downhill.} (15. Rb1 $11 {remains equal.}) 15... Bxe5 $17 {[%emt 0:00:11]} (15... dxe5 $6 16. Nb5 $11) 16. Ne2 {[%emt 0:03:07]} Qg5 {[%emt 0:00:50]} 17. Nxd4 {[%emt 0:06:11]} Bxd4+ {[%emt 0:00:42]} (17... cxd4 18. Rf3 $15) 18. Kh1 {[%emt 0:00:43] White is weak on the dark squares} Bxb2 {[%emt 0:00:03] Black is much more active.} 19. Rb1 {[%emt 0:00:53]} Be5 {[%emt 0:00:07] [#] And now ...Qg3 would win.} 20. Qf3 {[%emt 0:03:04]} Qe7 {[%emt 0:00:59]} 21. Rb3 {[%emt 0:02:43]} b6 $36 {[%emt 0:01:30][%mdl 2048] Black is on the roll.} 22. Qg4 {[%emt 0:02:53]} Rab8 {[%emt 0:01:00]} 23. h4 {[%emt 0:01:40]} h5 {[%emt 0:01:49]} 24. Qh3 {[%emt 0:01:48]} Kg7 {[%emt 0:02:21]} 25. Be2 {[%emt 0:01:10]} (25. a4 $17) 25... Bf6 {[%emt 0:00:39]} 26. g3 {[%emt 0:02:32]} (26. Rf4 $17) 26... Qxe4+ $19 {[%emt 1:17:12]} 27. Qg2 {[%emt 0:05:10]} Qxg2+ {[%emt 0:00:00]} 28. Kxg2 {[%emt 0:00:02]} Rbe8 {[%emt 0:00:00]} 29. Bd1 {[%emt 0:02:30]} (29. Bd3 {might work better.}) 29... Re4 {[%emt 0:00:00]} 30. Rbf3 {[%emt 0:00:43]} Be5 {[%emt 0:00:00]} 31. Bb3 {[%emt 0:01:14]} f5 {[%emt 0:00:00]} 32. R1f2 {[%emt 0:02:01]} a6 {[%emt 0:00:00]} 33. a4 {[%emt 0:01:40]} Rb8 {[%emt 0:00:00]} 34. Ra2 {[%emt 0:00:54]} b5 {[%emt 0:00:00]} 35. cxb5 {[%emt 0:00:45]} axb5 {[%emt 0:00:00]} 36. a5 {[%emt 0:00:35]} (36. axb5 $142 Rxb5 37. Rc2) 36... c4 {[%emt 0:00:00]} 37. Bc2 {[%emt 0:01:04] [#]} b4 $1 {[%emt 0:00:00][%cal Ob4b3] aiming for ...b3!} 38. Bxe4 {[%emt 0:01:12]} (38. a6 Re2+) 38... fxe4 {[%emt 0:00:00][%mdl 4096] Endgame. KRR-KRB} 39. Rf1 {[%emt 0:02:44]} b3 {[%emt 0:00:00]} 40. Raf2 {[%emt 0:00:11]} b2 {[%emt 0:00:00]} 41. a6 {[%emt 0:06:45]} b1=Q {[%emt 0:00:00]} (41... b1=B $2 {too greedy.} 42. a7 Ra8 43. Rf7+ Kh6 (43... Kg8 $2 44. Rf8+ Rxf8 45. Rxf8+ Kxf8 46. a8=Q+ Ke7 47. Qb7+ Kf6 48. Qxb1 $18) 44. Rxb1 $18) 42. Rxb1 {[%emt 0:03:54]} Rxb1 {[%emt 0:00:00] KRB-KR} 43. Ra2 {[%emt 0:00:03]} Rb8 {[%emt 0:00:00]} (43... c3 $142 44. Kh3 Rb2 45. Ra1 c2 46. Rc1 Bd4 47. g4 Be3 48. a7 Bxa7 (48... Bxc1 49. a8=Q Be3 50. Qe8 Rb7 51. Qc8 hxg4+ 52. Kxg4 c1=Q 53. Qxc1 Bxc1 54. Kh3 Rb2 55. Kg3 Kf6 56. Kg4 Ke5 57. h5 gxh5+ 58. Kxh5 Kf5 59. Kh4 Rh2+ 60. Kg3 Bf4#) 49. gxh5 gxh5 50. Kg2 Be3 51. Rxc2 Rxc2+ 52. Kf1 Kf6 53. Ke1 Ke5 54. Kd1 Ra2 55. Ke1 Kd4 (55... Kxd5 {is a self mate.} 56. Kd1 Kd4 57. Ke1 Kd3 58. Kf1 d5 59. Ke1 Ra1#) 56. Kf1 Kd3 57. Ke1 Ra1#) 44. a7 {[%emt 0:00:34]} Ra8 {[%emt 0:00:00] ...c3 is the strong threat.} 45. Ra6 {[%emt 0:00:57]} c3 {[%emt 0:00:00] Threatens to win with ...Kf6.} 46. Kf1 {[%emt 0:00:19]} c2 {[%emt 0:00:00]} 47. Rc6 {[%emt 0:00:10]} Rxa7 {[%emt 0:00:00]} 48. Rxc2 {[%emt 0:00:03]} Rf7+ {[%emt 0:00:00]} 49. Ke2 {[%emt 0:00:07]} Bxg3 {[%emt 0:00:00] ( -> ...Rf2+)} 50. Ke3 {[%emt 0:00:31]} Bxh4 {[%emt 0:00:00] Black mates.} 51. Kxe4 {[%emt 0:00:10]} Re7+ {[%emt 0:00:00]} 52. Kd4 {[%emt 0:00:10]} Bf6+ {[%emt 0:00:00]} 53. Kc4 {[%emt 0:00:07]} Rc7+ {[%emt 0:00:00]} 54. Kd3 {[%emt 0:01:41] Weighted Error Value: White=0.79/Black=0.21 (precise) .  Mistake:       	White=5     	---        Inaccurate:     	White=1     	---        OK:         	White=8     	Black=16     Best:        	White=2     	Black=1      Strong:       	White=1     	---} 0-1

[Event "African Individual Chess-ch Open 2024"]
[Site "Accra"]
[Date "2024.03.13"]
[Round "1.6"]
[White "Mwali, Chitumbo"]
[Black "Frempong-Smart Daniel"]
[Result "1-0"]
[ECO "B13"]
[WhiteElo "2340"]
[BlackElo "1877"]
[Annotator "TA"]
[PlyCount "94"]
[EventDate "2024.03.13"]
[EventCountry "GHA"]
[SourceTitle "playchess.com"]
[Source "ChessBase"]
[SourceQuality "1"]
[TimeControl "5400+30"]

{[%evp 11,94,0,15,8,40,0,7,-10,-8,-35,-27,-32,-31,-45,-33,-58,-42,-60,-34,-66,-53,-54,-50,-60,-55,-58,-59,-81,-96,-72,-85,-177,-168,-285,-284,-276,-283,-284,-284,-283,-271,-285,-275,-263,-245,-255,-271,-262,-270,-259,-259,-345,-344,-370,-320,-406,-397,-397,-386,-515,-499,-491,-493,-568,-543,-540,-512,-637,-637,-641,-531,-597,-514,-565,-551,-754,-731,-720,-689,-900,-865,-1510,-1358,-1495,-1424]} 1. e4 {[%emt 0:00:07]} c6 {[%emt 0:00:09]} 2. d4 {[%emt 0:01:48]} d5 {[%emt 0:00:12]} 3. exd5 {[%emt 0:02:08]} cxd5 {[%emt 0:00:10]} 4. Nf3 {[%emt 0:01:09]} Nf6 {[%emt 0:01:22]} 5. Be2 {[%emt 0:00:48]} Nc6 {[%emt 0:00:27]} 6. O-O {[%emt 0:00:38]} Bf5 {[%emt 0:00:17]} 7. c3 {[%emt 0:04:30]} Qc7 {[%emt 0:01:02]} 8. Nbd2 {[%emt 0:02:35][%cal Bb1d2,Bd2f1,Bf1e3][%mdl 32]} h6 {[%emt 0:01:23]} 9. Re1 {[%emt 0:00:26] The position is equal.} e6 {[%emt 0:00:19]} 10. Nf1 {[%emt 0:00:32]} Bd6 {[%emt 0:00:14]} 11. h3 {[%emt 0:00:34]} O-O {[%emt 0:00:18]} 12. Ne3 {[%emt 0:00:21]} Be4 {[%emt 0:02:00]} 13. Nf1 {[%emt 0:05:09]} Rab8 {[%emt 0:01:48]} 14. a4 {[%emt 0:01:46]} a6 {[%emt 0:00:15]} 15. N1d2 {[%emt 0:01:23]} Bh7 {[%emt 0:01:39][%cal Oc6b4] Threatens to win with ...Nb4!} 16. Nb3 {[%emt 0:08:13]} Nb4 17. cxb4 {[%emt 0:05:46] Strongly threatening Nc5.} Bc2 $1 {[%emt 0:12:25]} 18. Qd2 {[%emt 0:02:50]} Bxb3 {[%emt 0:00:05]} 19. Qc3 {[%emt 0:01:30] Black converts the advantage convincingly.} Qxc3 {[%emt 0:00:51]} 20. bxc3 {[%emt 0:00:22]} Rfc8 $36 {[%emt 0:00:38][%mdl 2048] Keeping White busy.} 21. Ra3 {[%emt 0:03:49]} (21. Bb2 $17 {was worth a try.}) 21... Rxc3 $19 {[%emt 0:08:18]} 22. Nd2 {[%emt 0:55:06] [#]} (22. Bd2 $142 Bxb4 23. Raa1) 22... Bxb4 $1 {[%emt 1:07:38]} 23. Bb2 {[%emt 0:00:00]} Bxa3 {[%emt 0:00:00]} 24. Bxc3 {[%emt 0:00:00]} Bc2 {[%emt 0:00:00][%cal Ob8c8]} 25. Ra1 {[%emt 0:00:00]} Bf8 {[%emt 0:00:00]} 26. Ra2 {[%emt 0:00:00]} Bg6 {[%emt 0:00:00]} 27. Ba5 {[%emt 0:00:00]} b6 {[%emt 0:00:00]} 28. Rb2 {[%emt 0:00:00]} Nd7 {[%emt 0:03:00]} 29. Bb4 {[%emt 0:00:00]} Bxb4 {[%emt 0:00:00]} 30. Rxb4 {[%emt 0:00:00]} a5 {[%emt 0:00:00]} 31. Rb2 {[%emt 0:00:00]} Rc8 {[%emt 0:00:00]} 32. Bb5 {[%emt 0:00:00]} Nf6 {[%emt 0:00:00]} 33. Nf3 {[%emt 0:00:00]} Rc1+ {[%emt 0:00:00]} 34. Kh2 {[%emt 0:00:00]} Rc2 35. Rxc2 {[%emt 0:00:00]} Bxc2 {[%emt 0:00:00][%mdl 4096] Endgame. KBN-KBN. Black is clearly winning.} 36. Ne1 {[%emt 0:00:00]} Bb3 {[%emt 0:00:00]} 37. f3 {[%emt 0:00:00]} Kf8 {[%emt 0:00:00]} 38. Nd3 {[%emt 0:00:00]} Bc4 {[%emt 0:00:00]} 39. Nb2 {[%emt 0:00:00]} Bxb5 {[%emt 0:00:00]} 40. axb5 {[%emt 0:00:00] KN-KN} Ke7 {[%emt 0:00:00] White must now prevent ...Ne8.} 41. Kg3 {[%emt 0:00:00]} Kd6 {[%emt 0:00:00] Hoping for ...Ne8.} 42. Kf4 {[%emt 0:10:00]} Ne8 {[%emt 0:07:00]} 43. Nd1 {[%emt 0:00:00]} Nc7 {[%emt 0:00:00]} 44. Nc3 {[%emt 0:00:00] [#]} e5+ $1 {[%emt 0:00:00]} 45. dxe5+ {[%emt 0:00:00]} (45. Ke3 exd4+) 45... Kc5 {[%emt 0:00:00][%cal Oc5c4] aiming for ...Kc4!} 46. Kf5 {[%emt 0:00:00]} Kc4 {[%emt 0:00:00]} 47. Na4 {[%emt 0:00:00]} Kxb5 {[%emt 0:00:00][%mdl 32768] Weighted Error Value: White=0.39/Black=0.12 (very precise) .  Mistake:       	White=2     	---        Inaccurate:     	White=6     	Black=2      OK:         	White=9     	Black=21     Best:        	White=2     	Black=1      Strong:       	---       	Black=1     . Sensor Board Error (Ke4/e5)?} 1-0